Cogmind - Beta 14 @@@ ROGUE MODE // 2024.08.10 @ 20:44:41 Player: Candesce Result: Destroyed by as-94325 with Assembled Blade Performance ------------- Evolutions (0) 0 Regions Visited (4) 800 Robots Destroyed (30) 150 Value Destroyed (572) 572 Prototype IDs (1) 20 Alien Tech Used (0) 0 Bonus (0) 0 TOTAL SCORE: 1542 Bonus ------- None Cogmind --------- Core Integrity 0/250 Matter 282/300 Energy 265/265 System Corruption 0% Temperature Cool (0) Movement Treading (160) Location -9/Mines Parts ------- > --- POWER (1) -------- Improved Ion Engine > --- PROPULSION (2) --- Light Treads Improved Treads > --- UTILITY (2) ------ Improved Heat Sink Large Storage Unit > --- WEAPON (2) ------- Medium Laser Improved Assault Rifle > --- INVENTORY (15) --- Improved Ion Engine Light Treads Improved Treads Improved Treads Improved Treads Armored Wheel High-capacity Storage Unit High-capacity Matter Pod (200) Structural Scanner Improved Terrain Scanner Seismic Detector Medium Laser Improved Assault Rifle Improved Assault Rifle Plasma Cutter Peak State ------------ > --- POWER ------------ Improved Ion Engine > --- PROPULSION ------- Light Treads Improved Treads > --- UTILITY ---------- Improved Heat Sink Large Storage Unit > --- WEAPON ----------- Medium Laser Improved Assault Rifle > --- INVENTORY -------- Improved Ion Engine Improved Treads Improved Treads Improved Treads Armored Wheel High-capacity Storage Unit Structural Scanner Improved Terrain Scanner Seismic Detector Medium Laser Improved Assault Rifle Improved Assault Rifle Mining Laser Plasma Cutter [Rating: 15] Favorites ----------- Power Improved Ion Engine Engine Improved Ion Engine Propulsion Light Treads Treads Light Treads Utility Large Storage Unit Device Seismic Detector Storage Large Storage Unit Weapon Medium Laser Energy Gun Medium Laser Ballistic Gun Improved Assault Rifle Build | -11 -10 -10 -10 -9 ------- Run | Yrd Mat Min Exi Min Slots Evolved . | . . . . . Power . | . . . . . Propulsion . | . . . . . Utility . | . . . . . Weapon . | . . . . . Parts Attached 31 | 7 22 1 . 1 Power 3 | 1 2 . . . Engine 3 | 1 2 . . . Core . | . . . . . Reactor . | . . . . . Propulsion 7 | 2 5 . . . Treads 7 | 2 5 . . . Leg . | . . . . . Wheel . | . . . . . Hover . | . . . . . Flight . | . . . . . Utility 13 | 2 9 1 . 1 Device 10 | 1 7 1 . 1 Storage 3 | 1 2 . . . Processor . | . . . . . Hackware . | . . . . . Protection . | . . . . . Artifact . | . . . . . Weapon 8 | 2 6 . . . Energy Gun 4 | 1 3 . . . Energy Cannon . | . . . . . Ballistic Gun 4 | 1 3 . . . Ballistic Cannon . | . . . . . Launcher . | . . . . . Special Weapon . | . . . . . Impact Weapon . | . . . . . Slashing Weapon . | . . . . . Piercing Weapon . | . . . . . Special Melee Weapon . | . . . . . Unidentified Prototypes 1 | . 1 . . . Parts Lost . | . . . . . Power . | . . . . . Propulsion . | . . . . . Utility . | . . . . . Weapon . | . . . . . Highest Loss Streak . | . . . . . To Critical Strikes . | . . . . . Average Slot Usage (%) 100 | . 100 100 100 100 Engine 14 | . 14 14 14 14 Treads 28 | . 28 28 28 28 Device 14 | . 14 14 14 14 Storage 14 | . 14 14 14 14 Energy Gun 14 | . 14 14 14 14 Ballistic Gun 13 | . 13 14 14 14 Peak Build Rating 15 | 7 15 15 13 15 Average Rating 11 | 5 10 13 13 13 On Entrance 9 | . 7 15 13 13 Naked Turns . | . . . . . Heaviest Build 33 | 15 33 33 33 33 Greatest Support 43 | 40 43 43 43 43 Greatest Overweight (x) 1 | . 1 . . . Average Overweight (x) . | . . . . . Largest Inventory Capacity 15 | 8 15 15 15 15 Average Capacity 14 | 7 14 15 15 15 Most Carried 15 | 3 15 15 15 15 Average Carried 12 | . 11 15 15 15 Final Capacity 15 | 8 15 15 15 15 Final Carried 15 | 3 15 15 15 15 Class Distribution -------------------- 100% | Mutant Dominant Class ---------------- Mutant | -10/Materials Mutant | -10/Mines Mutant | -10/Exiles Mutant | -9/Mines Resources | -11 -10 -10 -10 -9 ----------- Run | Yrd Mat Min Exi Min Matter Collected 750 | 234 442 31 . 43 Remotely . | . . . . . Salvage Created 920 | 95 560 99 . 166 Parts 68 | 9 45 3 . 11 Haulers Intercepted 2 | . 2 . . . Recyclers Shooed . | . . . . . Parts Field Recycled . | . . . . . Retrieved Matter . | . . . . . Parts Self-Destructed . | . . . . . Prevented . | . . . . . Kills | -11 -10 -10 -10 -9 ------- Run | Yrd Mat Min Exi Min Combat Hostiles Destroyed 21 | . 16 2 . 3 Guns 21 | . 16 2 . 3 Classes Destroyed 9 | 2 5 . . 2 Worker 1 | . 1 . . . Builder 1 | . . . . 1 Tunneler 3 | 2 . . . 1 Hauler 2 | . 2 . . . Recycler 1 | 1 . . . . Watcher 2 | . 2 . . . Swarmer 9 | . 9 . . . Grunt 11 | . 7 2 . 2 Assembled 1 | . . . . 1 Best Kill Streak 4 | 3 4 2 . 3 Combat Bots Only 3 | . 3 2 . 1 Max Kills in Single Turn 1 | 1 1 1 . 1 Gunslinging . | . . . . . Exploded . | . . . . . Melee . | . . . . . Uniques/NPCs Destroyed . | . . . . . Combat | -11 -10 -10 -10 -9 -------- Run | Yrd Mat Min Exi Min Hostile Shots Fired 110 | . 72 6 . 32 Missed 25 | . 15 2 . 8 Damage Taken 1105 | . 599 52 . 454 Core 251 | . 113 12 . 126 Absorbed by Shields . | . . . . . Regen/Repaired (Parts) 72 | . 72 . . . Core Remaining (%) 100 | 100 . . . . Volleys Fired 91 | 10 60 4 . 17 Largest 2 | 2 2 2 . 2 Hottest 73 | 70 70 73 . 73 Shots Fired 181 | 20 119 8 . 34 Gun 181 | 20 119 8 . 34 Cannon . | . . . . . Launcher . | . . . . . Special . | . . . . . Kinetic 91 | 10 60 4 . 17 Thermal 90 | 10 59 4 . 17 Explosive . | . . . . . Electromagnetic . | . . . . . Robot Hit Streak 13 | 5 13 6 . 5 Robot Miss Streak 4 | 4 4 1 . 3 Penetration Max . | . . . . . Secondary Targets 4 | . 4 . . . Max Gunslinging Chain 1 | . 1 . . . Shots Hit Robots 110 | 12 75 6 . 17 Core Hits 51 | 4 32 5 . 10 Critical Kills . | . . . . . Critical Parts Destroyed . | . . . . . Critical Strikes 4 | . 4 . . . Burn 4 | . 4 . . . Melee Attacks . | . . . . . Impact . | . . . . . Slashing . | . . . . . Piercing . | . . . . . Sneak Attacks . | . . . . . Combat Hostiles . | . . . . . Follow-up Attacks . | . . . . . Damage Inflicted 1470 | 152 973 85 . 260 Guns 1430 | 150 946 85 . 249 Cannons . | . . . . . Explosions . | . . . . . Melee . | . . . . . Ramming 40 | 2 27 . . 11 Kinetic 789 | 75 491 48 . 175 Thermal 641 | 75 455 37 . 74 Explosive . | . . . . . Electromagnetic . | . . . . . Impact . | . . . . . Slashing . | . . . . . Piercing . | . . . . . Highest Corruption . | . . . . . Average Corruption . | . . . . . Corruption Purged . | . . . . . Corruption Blocked . | . . . . . Overload Shots . | . . . . . Overflow Damage . | . . . . . Projectiles . | . . . . . Explosions . | . . . . . Melee . | . . . . . Knockbacks . | . . . . . Impact . | . . . . . Kinetic . | . . . . . Secondary . | . . . . . Self-Inflicted Damage . | . . . . . Shots . | . . . . . Rammed 7 | 1 4 . . 2 Targets Rammed 8 | 1 5 . . 2 Kicked . | . . . . . Crushed 1 | . 1 . . . Highest Temperature 222 | 54 222 24 . . Average Temperature 39 | 24 43 15 . . Received Heat Transfer 390 | . 207 45 . 138 Siege Activations . | . . . . . Robots Corrupted . | . . . . . Combat Hostiles . | . . . . . Parts Fried . | . . . . . Impact Corruptions . | . . . . . Robots Melted . | . . . . . Combat Hostiles . | . . . . . Parts Melted 2 | . 2 . . . Heat Transferred 2220 | 222 1665 111 . 222 Parts Sabotaged . | . . . . . Parts Stolen . | . . . . . Parts Stripped . | . . . . . Power Chain Reactions . | . . . . . Alert | -11 -10 -10 -10 -9 ------- Run | Yrd Mat Min Exi Min Peak Influence 286 | 15 286 98 . 60 Initial 48 | . 9 48 . . Average 87 | 4 142 45 . 16 Maximum Alert Level 1 | . 1 . . . Low Security (%) 85 | 100 69 100 . 100 Level 1 14 | . 30 . . . Level 2 . | . . . . . Level 3 . | . . . . . Level 4 . | . . . . . Level 5 . | . . . . . High Security . | . . . . . Max Security . | . . . . . Squads Dispatched 3 | . 3 . . . Investigation 3 | . 3 . . . Extermination . | . . . . . Reinforcement . | . . . . . Assault . | . . . . . Garrison . | . . . . . Intercept . | . . . . . Searches Triggered . | . . . . . Construction Impeded . | . . . . . Haulers Reinforced . | . . . . . Active Scanning Responses . | . . . . . Cargo Convoy Interrupts . | . . . . . Stealth | -11 -10 -10 -10 -9 --------- Run | Yrd Mat Min Exi Min Distress Signals . | . . . . . Communications Jammed . | . . . . . Distress Signals . | . . . . . Times Spotted 41 | . 24 2 . 15 Peak Tracking Total 15 | . 3 2 . 15 Tactical Retreats 5 | . 3 . . 2 Traps | -11 -10 -10 -10 -9 ------- Run | Yrd Mat Min Exi Min Traps Triggered 2 | . 2 . . . Indirectly . | . . . . . Trap Hack Attempts . | . . . . . Triggered . | . . . . . Disarmed . | . . . . . Reprogrammed . | . . . . . Reused . | . . . . . Traps Extracted . | . . . . . Installed . | . . . . . Triggered . | . . . . . Machines | -11 -10 -10 -10 -9 ---------- Run | Yrd Mat Min Exi Min Machines Disabled . | . . . . . Max in Single Turn . | . . . . . Machines Repaired . | . . . . . Machines Dismantled . | . . . . . Machines Sabotaged . | . . . . . Overloaded Fab Kills . | . . . . . Hacking | -11 -10 -10 -10 -9 --------- Run | Yrd Mat Min Exi Min Machines Accessed 9 | . 8 . 1 . Terminals 5 | . 5 . . . Fabricators . | . . . . . Repair Stations 1 | . 1 . . . Recycling Units 2 | . 2 . . . Scanalyzers . | . . . . . Garrison Access . | . . . . . Total Hacks 28 | . 24 . 4 . Successful 18 | . 14 . 4 . Failed 9 | . 9 . . . Catastrophic 2 | . 2 . . . Database Lockouts 1 | . 1 . . . Manual 9 | . 9 . . . Terminals 15 | . 15 . . . Fabricators . | . . . . . Repair Stations 5 | . 5 . . . Recycling Units 4 | . 4 . . . Scanalyzers . | . . . . . Garrison Access . | . . . . . Terminal Hacks 8 | . 4 . 4 . Record 4 | . . . 4 . Part Schematic 1 | . 1 . . . Unreport Threat 1 | . 1 . . . Locate Traps 1 | . 1 . . . Patrol Status 1 | . 1 . . . Fabricator Hacks . | . . . . . Repair Station Hacks 4 | . 4 . . . Scan Component 2 | . 2 . . . Repair 2 | . 2 . . . Recycling Unit Hacks 2 | . 2 . . . Report Inventory 2 | . 2 . . . Scanalyzer . | . . . . . Garrison Access Hacks . | . . . . . Unauthorized Hacks 4 | . 4 . . . Terminals 2 | . 2 . . . Botnet 1 | . 1 . . . Operators 1 | . 1 . . . Fabricators . | . . . . . Repair Stations . | . . . . . Recycling Units 2 | . 2 . . . Tunnel 2 | . 2 . . . Scanalyzers . | . . . . . Garrison Access . | . . . . . Data Cores Recovered . | . . . . . Used . | . . . . . Hacking Detections 7 | . 7 . . . Full Trace Events 1 | . 1 . . . Feedback Events . | . . . . . Feedback Blocked . | . . . . . Robot Schematics Acquired . | . . . . . Robots Built . | . . . . . Authchips . | . . . . . Time . | . . . . . Total Robot Build Rating . | . . . . . Part Schematics Acquired 1 | . 1 . . . Parts Built . | . . . . . Authchips . | . . . . . Time . | . . . . . Total Part Build Rating . | . . . . . Parts Repaired 2 | . 2 . . . Time 58 | . 58 . . . Parts Recycled . | . . . . . Recycled Matter . | . . . . . Retrieved Matter . | . . . . . Retrieved Components . | . . . . . Parts Scanalyzed . | . . . . . Part Schematics Acquired . | . . . . . Parts Damaged . | . . . . . Bothacking | -11 -10 -10 -10 -9 ------------ Run | Yrd Mat Min Exi Min Used RIF Installer . | . . . . . Robots Hacked . | . . . . . Non-combat . | . . . . . Combat . | . . . . . Robot Hacks Applied . | . . . . . Relay Couplers Released . | . . . . . Fabnet Peak Effective % . | . . . . . Robots Rewired . | . . . . . Allies Hacked . | . . . . . Hacks Repelled . | . . . . . Allies | -11 -10 -10 -10 -9 -------- Run | Yrd Mat Min Exi Min Total Allies . | . . . . . Largest Group . | . . . . . Highest-Rated Group . | . . . . . Highest-Rated Ally . | . . . . . Total Orders . | . . . . . Ally Attacks . | . . . . . Total Damage . | . . . . . Kills . | . . . . . Allies Corrupted . | . . . . . Allies Melted . | . . . . . Intel | -11 -10 -10 -10 -9 ------- Run | Yrd Mat Min Exi Min Robot Analysis Total . | . . . . . Derelict Logs Recovered 2 | . . 2 . . Drone Launches . | . . . . . Drone Recoveries . | . . . . . Exploration | -11 -10 -10 -10 -9 ------------- Run | Yrd Mat Min Exi Min Turns Passed 2662 | 103 1174 852 242 291 Spaces Moved 1389 | 37 531 524 151 146 Core 3 | 3 . . . . Treads 1386 | 34 531 524 151 146 Legs . | . . . . . Wheels . | . . . . . Hover . | . . . . . Flight . | . . . . . Fastest Speed 50 | 50 160 160 160 160 Average Speed 159 | 151 160 160 160 160 Slowest Speed 240 | 160 240 160 160 160 Overloaded Moves . | . . . . . Propulsion Burnouts . | . . . . . Robots Hopped . | . . . . . Cave-ins Triggered . | . . . . . Exploration Rate (%) 54 | 5 93 94 52 29 Regions Visited 4 Branch Regions 3 Pre-discovered Areas 4 | . 2 1 1 . Known Exits Taken . | . . . . . Unknown Exits Taken 4 | 1 1 1 1 . Scrap Searched 1 | . . 1 . . Spaces Dug . | . . . . . Terrain Destroyed . | . . . . . Melee . | . . . . . Projectile . | . . . . . AOE . | . . . . . Terrain Rammed . | . . . . . Walls Destroyed . | . . . . . Machines Disabled . | . . . . . Actions | -11 -10 -10 -10 -9 --------- Run | Yrd Mat Min Exi Min Total 1640 | 60 730 529 152 169 Wait 91 | 3 84 1 . 3 Move 1386 | 37 530 523 150 146 Hop . | . . . . . Pick Up 23 | 3 19 . 1 . Fast Attach 10 | 7 3 . . . Attach 3 | . 3 . . . Detach . | . . . . . Swap 18 | . 16 1 . 1 Drop 11 | . 10 . 1 . Fire 91 | 10 60 4 . 17 Melee . | . . . . . Ram . | . . . . . Kick . | . . . . . Crush 7 | . 5 . . 2 Escape Stasis . | . . . . . Rewire . | . . . . . Trap . | . . . . . Miscellaneous . | . . . . . Route ------- -11/Scrapyard -10/Materials (discovered 4 exits: [*Mat x3] / [*Min]) -10/Mines (discovered 2 exits: [*Mat] / *Exi) -10/Exiles -9/Mines History --------- Turn | Location | Event 29 | -11/Scrapyard | Discovered new exit (range 15) 104 | -11/Scrapyard | Entered Materials 187 | -10/Materials | Central database locked down 288 | -10/Materials | Discovered new exit (range 13) 302 | -10/Materials | Build established: Mutant 558 | -10/Materials | Discovered new exit (range 16) 865 | -10/Materials | Discovered new exit (range 12) 1089 | -10/Materials | Discovered new exit (range 8) 1130 | -10/Materials | Repaired Lgt. Treads 1163 | -10/Materials | Repaired Imp. Ion Engine 1278 | -10/Materials | Entered Mines 1451 | -10/Mines | Found a hidden stash of uninstalled traps 1640 | -10/Mines | Deemed a non-threat by the Exiles lab entrance 1640 | -10/Mines | Discovered new exit (range 5) 1947 | -10/Mines | Discovered new exit (range 11) 2130 | -10/Mines | Entered Exiles 2169 | -10/Exiles | Met 8R-AWN 2196 | -10/Exiles | Met EX-HEX 2242 | -10/Exiles | Met EX-BIN 2268 | -10/Exiles | Met EX-DEC 2276 | -10/Exiles | Learned location of Zion (-6) 2358 | -10/Exiles | Discovered new exit (range 11) 2372 | -10/Exiles | Entered Mines 2570 | -9/Mines | Core integrity fell below 50% 2627 | -9/Mines | Assembled infested the area 2649 | -9/Mines | Core integrity fell below 20% 2663 | -9/Mines | Destroyed by as-94325 with Assembled Blade Last Messages --------------- 02575_ Critical hit (Burn: +37). 02583_ G-34 Mercenary destroyed. 02589_ U-05 Engineer destroyed. 02607_ G-47 Trooper destroyed. 02618_ Acquired 43 matter. 02622_ K-01 Serf collects debris. 02625_ T-07 Excavator is excavating. 02625_ U-05 Engineer lays Concrete. 02625_ T-07 Excavator is excavating. 02626_ K-01 Serf collects debris. 02627_ ALERT: Infestation in the mines, dispatching Demolisher response squad. 02629_ K-01 Serf collects debris. 02638_ T-07 Excavator is excavating. 02638_ U-05 Engineer lays Concrete. 02640_ T-07 Excavator is excavating. 02642_ U-05 Engineer lays Concrete. 02642_ T-07 Excavator destroyed. 02651_ as-90829 destroyed. 02657_ as-77523 destroyed. Map ----- +----------------------------------------------------+ | ?????????????????????????????????????????????????? | | ?????????????????????????????????????????????????? | | ?????????????????????????????????????????????????? | | ?????????????????????????????????????????????????? | | ??????????????^#?????? ??????????????????????????? | | ?????????????? ##??? #?????????????????????????? | | ?????????????? #?? #?????????????????????????? | | ?????????????? ## #?????????????????????????? | | ??????????????? ??????????????????????????? | | ??????????????? ??????????????????????????? | | ??????????????? #??????????????????????????? | | ???????????????# ???????????????????????????? | | ?????#????????## ???????????????????????????? | | ?????# ???### ????????????????????????????? | | ????# ### ????????????????????????????? | | ??????? ?????????????????????????????? | | ??????????# ?????????????????????????????? | | ??????????# $#?????????????????????????????? | | ??????????# #####?????#???????????????????? | | ??????# ###% =%! ##??? ####????????????????? | | ???????????????##" != #### ##???????????????? | | ???????????????# |%=! #???#???????????? | | ???????????????# % a #???? ??????????? | | ???????????????## ! ##a## ##????? ????????? | | ????????????????## ###a#???###???????# ???????? | | ?????????????????#[% ##?#@#?????????????? ####??? | | ?????????????????# = #??# #???????????????? #??? | | ?????????????????# #??# #?????????????#???# #??? | | ?????????????????## #??# ###########???# ??# #??? | | ??????????????????## #??# ## #???# ??# ###? | | ???????????????????# #??# #?### ??# #? | | ???????????????????# #??#### #?# #?## #? | | ???????????????????# #?????# #?# ### #? | | ???????????????????# #?????# #??# ## | | ???????????????????# #?????# """" #??## # | | ???????????????????# ####### """" #???## | | ???????????????????# """" #????## | | ???????????????????## ###### #????## # | | ????????????????????# #????##########???## ## | | ????????????????????# ################### #? | | ????????????????????# !*%=!% ## | | ????????????????????##################### # | | ??????????????????????????????????####### | | ??????????????????????????????????# ## | | ??????????????????????????????????# | | ??????????????????????????????????# ##### | | ????????????????????????###???????# ##?##?### | | ???????????????????????## #?????## # #????# | | ???????????????????????# #???## #????? | | ???????????????????????# #### #????? | +----------------------------------------------------+ Best States ------------- Heat Dissipation 39 Energy Generation 12 Energy Capacity 265 Matter Stores 300 Matter Capacity 300 Sight Range 16 Terrain Scan Density 10 Evasion (%) 40 Recoil Reduction 2 Item Schematics ----------------- Hcp. Storage Unit | -10/Materials | Hacked Robot Schematics ------------------ None Fabricated ------------ Nothing Alien Tech Used ----------------- None Achievements -------------- None Challenges ------------ None Game ------ Seed PowerAmuletWarhead Manual? 0 Play Time 00:20:04 Cumulative 166.8 hours Start 2024.08.10 @ 14:20:53 End 2024.08.10 @ 20:44:41 Sessions 3 Manual Loads 0 Difficulty Rogue Special Mode None Game No. 224 Rogue 224 Adventurer 0 Explorer 0 Win Type - Total 4 Types 3/0/0/1/0/0/0/0/0 Lore% 40 Gallery% 66 Achievement% 57 Wizard Run 0 Options --------- Layout 0 ASCII 0 Keyboard 0 Movement Numpad Keybinds 0 Fullscreen 1 Font 16/SmallcapsGlow Map View 50x54 Zoom Use 0% Tactical HUD 1 Map Filters NONE Filters NONE Steam 1 RUN: 1bcb68ff-df5a-4c43-8778-85fe4aeda3f2